Cogmind - Beta 17 @@@ ROGUE MODE // 2026.06.27 @ 22:35:11 Player: Iris Result: Destroyed by Y-45 Defender with Beam Rifle Performance ------------- Evolutions (1) 500 Regions Visited (3) 600 Robots Destroyed (29) 145 Value Destroyed (558) 558 Prototype IDs (4) 80 Alien Tech Used (0) 0 Bonus (0) 0 TOTAL SCORE: 1883 Bonus ------- None Cogmind --------- Core Integrity 0/400 Matter 259/300 Energy 96/100 System Corruption 1% Temperature Cool (9) Movement Core (450) Ox8 Location -9/Storage Parts ------- > --- POWER (2) -------- (None) > --- PROPULSION (2) --- (None) > --- UTILITY (2) ------ Large Storage Unit Visual Processing Unit > --- WEAPON (3) ------- Improved Medium Laser Improved Assault Rifle > --- INVENTORY (15) --- Targeting Computer Improved EM Shotgun Small Laser Peak State ------------ > --- POWER ------------ Cooled Ion Engine > --- PROPULSION ------- Light Treads Aluminum Leg > --- UTILITY ---------- Visual Processing Unit Utility Shielding > --- WEAPON ----------- Improved EM Shotgun Improved Medium Laser Improved Assault Rifle > --- INVENTORY -------- Large Storage Unit Small Matter Pod Targeting Computer Improved EM Shotgun Small Laser [Rating: 17] Favorites ----------- Power Ion Engine Engine Ion Engine Propulsion Light Treads Treads Light Treads Leg Aluminum Leg Wheel Wheel Utility Small Matter Pod Storage Small Matter Pod Processor Visual Processing Unit Protection Utility Shielding Weapon Improved Assault Rifle Energy Gun Improved Medium Laser Energy Cannon Beam Cannon Ballistic Gun Improved Assault Rifle Launcher Grenade Launcher Build | -11 -10 -9 -9 ------- Run | Yrd Mat Mat Sto Slots Evolved 2 | . . 2 . Power 1 | . . 1 . Propulsion . | . . . . Utility . | . . . . Weapon 1 | . . 1 . Parts Attached 23 | 8 2 3 10 Power 3 | 1 . 1 1 Engine 3 | 1 . 1 1 Core . | . . . . Reactor . | . . . . Propulsion 5 | 2 . . 3 Treads 3 | 1 . . 2 Leg 1 | . . . 1 Wheel 1 | 1 . . . Hover . | . . . . Flight . | . . . . Utility 6 | 3 . 1 2 Device . | . . . . Storage 4 | 3 . . 1 Processor 1 | . . . 1 Hackware . | . . . . Protection 1 | . . 1 . Artifact . | . . . . Weapon 9 | 2 2 1 4 Energy Gun 4 | 1 . . 3 Energy Cannon 1 | . 1 . . Ballistic Gun 3 | 1 . 1 1 Ballistic Cannon . | . . . . Launcher 1 | . 1 . . Special Weapon . | . . . . Impact Weapon . | . . . . Slashing Weapon . | . . . . Piercing Weapon . | . . . . Special Melee Weapon . | . . . . Unidentified Prototypes 4 | . . . 4 Corrupted Parts 1 | . . . 1 System Corruption 1 | . . . 1 Parts Lost 8 | . . 7 1 Power 2 | . . 2 . Propulsion 2 | . . 1 1 Utility . | . . . . Weapon 4 | . . 4 . Highest Loss Streak 3 | . . 3 1 To Critical Strikes . | . . . . Average Backups 5 | 3 6 6 4 Power . | . 1 . . Propulsion . | 1 2 1 . Utility 2 | . 2 2 2 Weapon 1 | . 1 1 1 Tool/Special . | . . . . Unused Backups 7 | . . 2 5 Power 1 | . . . 1 Propulsion 2 | . . 2 . Utility 3 | . . . 3 Weapon 1 | . . . 1 Tool/Special . | . . . . Average Slot Usage (%) 68 | . 85 50 66 Engine 8 | . 14 5 6 Treads 8 | . 14 7 5 Leg 4 | . . . 7 Storage 14 | . 28 17 7 Processor 2 | . . . 4 Protection 5 | . . 4 8 Energy Gun 9 | . . 1 16 Energy Cannon 2 | . 4 8 . Ballistic Gun 9 | . 14 5 8 Launcher 2 | . 9 . . Peak Build Rating 17 | 6 6 6 17 Average Rating 8 | 4 6 4 12 On Entrance 3 | . 6 6 2 Avg Prop Armor Cover (%) 6 | 5 . . 6 Naked Turns . | . . . . Heaviest Build 26 | 18 16 16 26 Greatest Support 20 | 20 20 20 20 Greatest Overweight (x) 8 | . . 3 8 Average Overweight (x) . | . . . . Largest Inventory Capacity 15 | 8 8 8 15 Average Capacity 6 | 6 8 6 6 Most Carried 8 | 6 8 8 5 Average Carried 5 | 3 6 5 4 Final Capacity 15 | 8 8 5 15 Final Carried 7 | 6 7 2 3 Class Distribution -------------------- 67% | Mutant 29% | Tank Dominant Class ---------------- Mutant | -10/Materials Mutant | -9/Materials Tank | -9/Storage Resources | -11 -10 -9 -9 ----------- Run | Yrd Mat Mat Sto Matter Collected 699 | 309 85 12 293 Remotely . | . . . . Salvage Created 885 | 149 433 221 82 Parts 55 | 10 22 15 8 Haulers Intercepted 1 | . 1 . . Recyclers Shooed 2 | . 2 . . Parts Field Recycled . | . . . . Retrieved Matter . | . . . . Parts Self-Destructed . | . . . . Prevented . | . . . . Parts Restored . | . . . . Kills | -11 -10 -9 -9 ------- Run | Yrd Mat Mat Sto Combat Hostiles Destroyed 15 | . 10 4 1 Guns 8 | . 5 2 1 Cannons 4 | . 2 2 . AOE 3 | . 3 . . Classes Destroyed 9 | 3 5 1 . Worker 7 | 1 3 2 1 Builder 1 | . 1 . . Tunneler 1 | 1 . . . Hauler 1 | . 1 . . Recycler 2 | 1 1 . . Watcher 2 | . 2 . . Swarmer 3 | . 3 . . Grunt 10 | . 7 3 . Sentry 2 | . . 1 1 Best Kill Streak 8 | 2 8 4 1 Combat Bots Only 3 | . 3 3 1 Max Kills in Single Turn 2 | 1 2 1 1 Gunslinging . | . . . . Exploded 1 | . 1 . . Melee . | . . . . Uniques/NPCs Destroyed . | . . . . Combat | -11 -10 -9 -9 -------- Run | Yrd Mat Mat Sto Hostile Shots Fired 169 | . 38 89 42 Missed 51 | . 11 31 9 Hits 118 | . 27 58 33 Projectile 118 | . 27 58 33 Critical Strikes 3 | . . 2 1 Damage Taken 1574 | . 313 785 476 Core 484 | . 74 285 125 Absorbed by Shields . | . . . . Redirected to Shielding 3 | . . 3 . Core Remaining (%) 85 | 100 70 . . Volleys Fired 88 | 8 36 35 9 Largest 3 | 2 2 2 3 Hottest 124 | 60 80 80 124 Shots Fired 144 | 16 54 51 23 Gun 108 | 16 36 33 23 Cannon 23 | . 5 18 . Launcher 13 | . 13 . . Special . | . . . . Kinetic 78 | 8 36 25 9 Thermal 48 | 8 5 26 9 Explosive 13 | . 13 . . Electromagnetic 5 | . . . 5 Robot Hit Streak 9 | 6 9 7 6 Robot Miss Streak 4 | 1 4 4 2 Penetration Max . | . . . . Secondary Targets 1 | . . 1 . Max Gunslinging Chain 1 | . . 1 . Shots Hit Robots 91 | 12 31 32 16 Core Hits 47 | 3 26 12 6 Critical Kills . | . . . . Critical Parts Destroyed . | . . . . Critical Strikes . | . . . . Melee Attacks . | . . . . Impact . | . . . . Slashing . | . . . . Piercing . | . . . . Sneak Attacks . | . . . . Combat Hostiles . | . . . . Follow-up Attacks . | . . . . Damage Inflicted 1942 | 141 1038 518 245 Guns 948 | 141 265 297 245 Cannons 207 | . 70 137 . Explosions 787 | . 703 84 . Melee . | . . . . Ramming . | . . . . Kinetic 652 | 74 265 210 103 Thermal 447 | 67 70 224 86 Explosive 787 | . 703 84 . Electromagnetic 56 | . . . 56 Impact . | . . . . Slashing . | . . . . Piercing . | . . . . Highest Corruption 1 | . . . 1 Average Corruption 1 | . . . 1 Corruption Purged . | . . . . Corruption Blocked . | . . . . Effects 4 | . . . 4 Message Errors 1 | . . . 1 Heat Flow Errors 1 | . . . 1 Parts Rejected 1 | . . . 1 Data Loss (minor) 1 | . . . 1 Overload Shots . | . . . . Overflow Damage 79 | . 20 59 . Projectiles . | . . . . Explosions 79 | . 20 59 . Melee . | . . . . Knockbacks . | . . . . Impact . | . . . . Kinetic . | . . . . Secondary . | . . . . Self-Inflicted Damage 86 | . 8 78 . Shots 2 | . 1 1 . Rammed 1 | . . . 1 Targets Rammed 2 | . . . 2 Kicked 1 | . . . 1 Crushed . | . . . . Highest Temperature 252 | . 90 117 252 Average Temperature 47 | . 31 40 70 Received Heat Transfer 726 | . 138 408 180 Siege Activations . | . . . . Martial Activations . | . . . . Shielding Activations . | . . . . Robots Disrupted . | . . . . Combat Hostiles . | . . . . Robots Corrupted . | . . . . Combat Hostiles . | . . . . Parts Fried . | . . . . Impact Corruptions . | . . . . Robots Melted . | . . . . Combat Hostiles . | . . . . Parts Melted . | . . . . Heat Transferred 979 | 150 148 496 185 Parts Sabotaged . | . . . . Parts Stolen . | . . . . Parts Stripped . | . . . . Power Chain Reactions . | . . . . Alert | -11 -10 -9 -9 ------- Run | Yrd Mat Mat Sto Maximum Alert Level 1 | . 1 . . Low Security (%) 98 | 100 92 100 100 Level 1 1 | . 7 . . Level 2 . | . . . . Level 3 . | . . . . Level 4 . | . . . . Level 5 . | . . . . High Security . | . . . . Max Security . | . . . . Peak Influence 213 | 10 213 91 30 Initial 76 | . . 76 6 Average 33 | . 98 65 4 Influence Increases 603 | 15 343 150 95 Destroy 0b10 Robot/C 300 | . 200 80 20 Destroy 0b10 Robot/NC 70 | 15 40 10 5 Destroy Leader 66 | . 36 20 10 Disable Machine 30 | . 15 15 . Destroy Structure 77 | . 52 25 . Lose Combat Pursuer 60 | . . . 60 Influence Decreases 598 | 15 160 317 106 Entered New Map 117 | . . 107 10 Time Decay 411 | 15 160 140 96 Lost Part 70 | . . 70 . Squads Dispatched 4 | . 1 1 2 Investigation 3 | . 1 1 1 Extermination . | . . . . Reinforcement 1 | . . . 1 Assault . | . . . . Garrison . | . . . . Intercept . | . . . . Searches Triggered . | . . . . Construction Impeded . | . . . . Haulers Reinforced . | . . . . Active Scanning Responses . | . . . . Cargo Convoy Interrupts . | . . . . Stealth | -11 -10 -9 -9 --------- Run | Yrd Mat Mat Sto Distress Signals 7 | . 3 1 3 Communications Jammed . | . . . . Distress Signals . | . . . . Times Spotted 46 | . 16 10 20 Peak Tracking Total 6 | . 5 6 5 Tactical Retreats 3 | . . . 3 Traps | -11 -10 -9 -9 ------- Run | Yrd Mat Mat Sto Traps Triggered 3 | . . 1 2 Indirectly . | . . . . Trap Hack Attempts . | . . . . Triggered . | . . . . Disarmed . | . . . . Reprogrammed . | . . . . Reused . | . . . . Traps Extracted . | . . . . Installed . | . . . . Triggered . | . . . . Machines | -11 -10 -9 -9 ---------- Run | Yrd Mat Mat Sto Machines Disabled 2 | . 1 1 . Max in Single Turn 1 | . 1 1 . Machines Repaired . | . . . . Machines Dismantled . | . . . . Machines Sabotaged . | . . . . Overloaded Fab Kills . | . . . . Hacking | -11 -10 -9 -9 --------- Run | Yrd Mat Mat Sto Machines Accessed 2 | . 1 1 . Terminals 1 | . 1 . . Fabricators . | . . . . Repair Stations . | . . . . Recycling Units . | . . . . Scanalyzers 1 | . . 1 . Garrison Access . | . . . . Total Hacks 5 | . 4 1 . Successful 3 | . 3 . . Failed 2 | . 1 1 . Catastrophic . | . . . . Database Lockouts . | . . . . Manual . | . . . . Terminals 4 | . 4 . . Fabricators . | . . . . Repair Stations . | . . . . Recycling Units . | . . . . Scanalyzers 1 | . . 1 . Garrison Access . | . . . . Terminal Hacks 3 | . 3 . . Record 2 | . 2 . . Maintenance Status 1 | . 1 . . Fabricator Hacks . | . . . . Repair Station Hacks . | . . . . Recycling Unit Hacks . | . . . . Scanalyzer . | . . . . Garrison Access Hacks . | . . . . Unauthorized Hacks . | . . . . Terminals . | . . . . Fabricators . | . . . . Repair Stations . | . . . . Recycling Units . | . . . . Scanalyzers . | . . . . Garrison Access . | . . . . Data Cores Recovered . | . . . . Used . | . . . . Hacking Detections 2 | . 1 1 . Full Trace Events 1 | . 1 . . Feedback Events . | . . . . Feedback Blocked . | . . . . Robot Schematics Acquired . | . . . . Robots Built . | . . . . Authchips . | . . . . Time . | . . . . Total Robot Build Rating . | . . . . Part Schematics Acquired . | . . . . Parts Built . | . . . . Authchips . | . . . . Time . | . . . . Total Part Build Rating . | . . . . Part Studies Acquired . | . . . . Parts Repaired . | . . . . Time . | . . . . Parts Recycled . | . . . . Recycled Matter . | . . . . Retrieved Matter . | . . . . Retrieved Components . | . . . . Parts Scanalyzed . | . . . . Part Schematics Acquired . | . . . . Parts Damaged . | . . . . Bothacking | -11 -10 -9 -9 ------------ Run | Yrd Mat Mat Sto Used RIF Installer . | . . . . Robots Hacked . | . . . . Non-combat . | . . . . Combat . | . . . . Robot Hacks Applied . | . . . . Relay Couplers Released . | . . . . Fabnet Peak Effective % . | . . . . Robots Rewired . | . . . . Allies Hacked . | . . . . Hacks Repelled . | . . . . Allies | -11 -10 -9 -9 -------- Run | Yrd Mat Mat Sto Total Allies . | . . . . Largest Group . | . . . . Highest-Rated Group . | . . . . Highest-Rated Ally . | . . . . Total Orders . | . . . . Ally Attacks . | . . . . Total Damage . | . . . . Kills . | . . . . Allies Corrupted . | . . . . Allies Melted . | . . . . Intel | -11 -10 -9 -9 ------- Run | Yrd Mat Mat Sto Active Infowar (turns) 389 | . . . 389 Optics 389 | . . . 389 Robot Analysis Total . | . . . . Derelict Logs Recovered . | . . . . Drone Launches . | . . . . Drone Recoveries . | . . . . Exploration | -11 -10 -9 -9 ------------- Run | Yrd Mat Mat Sto Turns Passed 1764 | 264 371 280 849 Spaces Moved 1022 | 161 173 122 566 Core 252 | 56 . 26 170 Treads 624 | 105 173 96 250 Legs 146 | . . . 146 Wheels . | . . . . Hover . | . . . . Flight . | . . . . Fastest Speed 50 | 50 160 50 50 Average Speed 141 | 121 160 152 139 Slowest Speed 450 | 160 160 200 450 Overloaded Moves . | . . . . Propulsion Burnouts . | . . . . Robots Hopped . | . . . . Potential Cave-ins . | . . . . Cave-ins Triggered . | . . . . Exploration Rate (%) 25 | 7 35 10 50 Regions Visited 3 Branch Regions 1 Pre-discovered Areas . | . . . . Known Exits Taken . | . . . . Unknown Exits Taken 3 | 1 1 1 . Scrap Searched . | . . . . Spaces Dug . | . . . . Terrain Destroyed 80 | . 51 29 . Melee . | . . . . Projectile . | . . . . AOE 80 | . 51 29 . Terrain Rammed . | . . . . Walls Destroyed . | . . . . Machines Disabled . | . . . . Actions | -11 -10 -9 -9 --------- Run | Yrd Mat Mat Sto Total 1190 | 212 213 163 602 Wait 21 | 19 . . 2 Move 1019 | 160 172 121 566 Hop . | . . . . Pick Up 23 | 12 2 2 7 Fast Attach 9 | 3 . . 6 Attach 9 | 4 . 3 2 Detach . | . . . . Swap 9 | 3 2 1 3 Drop 10 | 3 1 1 5 Fire 88 | 8 36 35 9 Melee . | . . . . Ram 1 | . . . 1 Kick 1 | . . . 1 Crush . | . . . . Escape Stasis . | . . . . Rewire . | . . . . Trap . | . . . . Miscellaneous . | . . . . Route ------- -11/Scrapyard -10/Materials -9/Materials (discovered 2 exits: *Sto x2) -9/Storage History --------- Turn | Location | Event 23 | -11/Scrapyard | Discovered new exit (range 13) 265 | -11/Scrapyard | Entered Materials 316 | -10/Materials | Build established: Mutant 612 | -10/Materials | Discovered new exit (range 15) 636 | -10/Materials | Entered another Materials area 636 | -9/Materials | Evolved 2 slots: Power x1, Weapon x1 661 | -9/Materials | Discovered new exit (range 15) 744 | -9/Materials | Discovered new exit (range 13) 883 | -9/Materials | Core integrity fell below 50% 916 | -9/Materials | Entered Storage 944 | -9/Storage | Lost 3 parts (1p2w) 973 | -9/Storage | Met 01-MTF 1346 | -9/Storage | Build established: Tank 1737 | -9/Storage | Core integrity fell below 20% 1765 | -9/Storage | Destroyed by Y-45 Defender with Beam Rifle Last Messages --------------- 01615_ Acquired Lgt. Treads. 01646_ U-05 Engineer lays Concrete. 01707_ Critical hit (Burn: +37). 01718_ 01-MTF triggered Alarm Trap. 01718_ An alarm sounds. 01718_ ALERT: Alarm triggered, dispatching investigation squad. 01724_ Lgt. Treads destroyed. 01724_ Field strength at 51. 01725_ Field strength at 44. 01726_ Field strength at 37. 01727_ Field strength at 30. 01728_ U-05 Engineer lays Concrete. 01728_ Field strength at 23. 01728_ Slammed into U-05 Engineer. 01729_ Field strength at 16. 01730_ Field strength at 9. 01731_ Field strength at 2. 01732_ Stasis field depleted. 01738_ U-05 Engineer lays Concrete. 01764_ K-01 Serf destroyed. Map ----- +----------------------------------------------------+ | | | | | | | | | | | | | | | | | | | | | | | | | | | | | ?????????????????????????????????????????????????? | | ????????????????????#######??????????????????????? | | ???????????????????## """ ??????????????????????? | | ???????????????????# "T" ?????????????????????? | | ????????????????????# ######???????????????? | | ????????????????????#[ !! + #???????????????? | | ????????????????????# !! # #???????????????? | | ????????????????????##" "#### #???????????????? | | ?????????????????????#"??# #???????????????? | | ?????????????????????????# #######?????????? | | ???????###??????##########!u p #?????????? | | ???????+ g kug m @%*Y #?????????? | | ???????# #??????##########+##+## #?????????? | | ???????# #??????????????# ## #?????????? | | ???????# #??????????????# ## +?????????? | | ???????# #??????????????# ## #?????????? | | ???????# #??????????????# ## #?????????? | | ???????# #??????????????# """ ## #?????????? | | ?????### #??????????????# """ ## #########?? | | ?????#"" #??????????????# """ # #[! = #?? | | #????#"" #??????????????######## +!T^[ ^ #? | | #????#"T #?????????????????????# # * ##? | | "????#"" #?????????????????????# ####+##########?? | | "????#"" #??????#??????????????#=#?# #???? | | #????### #??????# ?????????????# #?# """" #???? | | ######## ########+############## ### "??" #???? | | * # "??" #???? | | + "??" #???? | | # "??" #???? | | ############### % % # "??" #???? | | ??????????????# !# ? #???? | | ??????????????# ###########???? | | ??????????????# ###### ##### #?????????????? | | ????????????? #???##+######+#### #?????????????? | | ????????????###/#??### % #??# #?????????????? | | ???????????? # %*= #??# #?????????????? | +----------------------------------------------------+ Best States ------------- Heat Dissipation 28 Energy Generation 14 Energy Capacity 280 Matter Stores 348 Matter Capacity 350 Sight Range 18 Terrain Scan Density 10 Utility Shielding 33 Evasion (%) 55 Recoil Reduction 1 Item Schematics ----------------- None Robot Schematics ------------------ None Fabricated ------------ Nothing Repaired ---------- Nothing Studied --------- None Alien Tech Used ----------------- None Achievements -------------- A Problem For Future Me DATA ERROR: Steam Global Achievement% For Emergencies Only Organ Harvest Overwhelming Spot Them First There's More Where That Came From Challenges ------------ None Game ------ Seed ThrusterMetamassRocket Manual? 0 Play Time 00:41:27 Cumulative 28.1 hours Start 2026.06.27 @ 21:42:04 End 2026.06.27 @ 22:35:11 Sessions 1 Manual Loads 0 Difficulty Rogue Special Mode None Game No. 64 Rogue 40 Adventurer 24 Explorer 0 Win Type - Total 0 Types 0/0/0/0/0/0/0/0/0/0 Lore% 13 Gallery% 27 Achievement% 17 Wizard Run 0 Options --------- Layout 1 ASCII 0 Keyboard 0 Movement Mouse Keybinds 0 Fullscreen 0 Font 28/SmallcapsGlow Map View 77x35 Zoom Use 0% Tactical HUD 1 Map Filters NONE Filters NONE Steam X RUN: 5b638a01-782e-4a1c-b173-b679a35b43db